Cogmind - Beta 9.1 @@@ ROGUE MODE // 2019.10.31 @ 15:05:51 // Halloween2019/Abominations Player: inSANE Result: Destroyed by Lesser Abomination with Etherial Claws Performance ------------- Evolutions (0) 0 Regions Visited (1) 200 Robots Destroyed (10) 50 Value Destroyed (568) 568 Prototype IDs (0) 0 Alien Tech Used (0) 0 Bonus (0) 0 TOTAL SCORE: 818 Bonus ------- None Cogmind --------- Core Integrity 0/250 Matter 267/300 Energy 125/125 System Corruption 0% Temperature Cool (0) Location -10/Materials Parts ------- Power (1) Light Ion Engine Propulsion (2) Light Treads Utility (2) Small Storage Unit High-capacity Storage Unit Weapon (2) Small Laser Inventory (14) Light Ion Engine Light Treads Aluminum Leg Aluminum Leg Wheel Compact Wheel Heat Sink Targeting Computer Light Armor Plating Small Laser Small Laser Assault Rifle Light Assault Rifle Peak State ------------ Power Light Ion Engine Propulsion Light Treads Wheel Utility Small Storage Unit High-capacity Storage Unit Weapon Assault Rifle Assault Rifle Inventory Light Ion Engine Light Treads Aluminum Leg Aluminum Leg Compact Wheel Heat Sink Small Laser Small Laser Small Laser Light Assault Rifle [Rating: 8] Favorites ----------- Power Light Ion Engine Engine Light Ion Engine Propulsion Light Treads Treads Light Treads Wheel Wheel Utility Small Storage Unit Storage Small Storage Unit Weapon Assault Rifle Energy Gun Small Laser Ballistic Gun Assault Rifle Build | -11 -10 ------- Run | Scr Mat Slots Evolved . | . . Power . | . . Propulsion . | . . Utility . | . . Weapon . | . . Parts Attached 11 | 6 5 Power 1 | 1 . Engine 1 | 1 . Core . | . . Reactor . | . . Propulsion 3 | 2 1 Treads 1 | 1 . Leg . | . . Wheel 2 | 1 1 Hover . | . . Flight . | . . Utility 2 | 1 1 Device . | . . Storage 2 | 1 1 Processor . | . . Hackware . | . . Protection . | . . Artifact . | . . Weapon 5 | 2 3 Energy Gun 1 | . 1 Energy Cannon . | . . Ballistic Gun 4 | 2 2 Ballistic Cannon . | . . Launcher . | . . Special Weapon . | . . Impact Weapon . | . . Slashing Weapon . | . . Piercing Weapon . | . . Special Melee Weapon . | . . Unidentified Prototypes . | . . Parts Lost 3 | . 3 Power . | . . Propulsion 1 | . 1 Utility . | . . Weapon 2 | . 2 Highest Loss Streak 3 | . 3 Average Slot Usage (%) 97 | . 97 Engine 14 | . 14 Treads 14 | . 14 Wheel 13 | . 13 Storage 27 | . 27 Ballistic Gun 26 | . 26 Naked Turns . | . . Heaviest Build 43 | 11 43 Greatest Support 20 | 10 20 Greatest Overweight (x) 4 | 1 4 Average Overweight (x) 2 | . 3 Largest Inventory Capacity 14 | 6 14 Average Capacity 12 | 4 13 Most Carried 14 | 4 14 Average Carried 8 | 2 9 Final Capacity 14 | 6 14 Final Carried 13 | 4 13 Class Distribution -------------------- 100% | Mutant Dominant Class ---------------- Mutant | -10/Materials Resources | -11 -10 ----------- Run | Scr Mat Matter Collected 474 | 241 233 Remotely . | . . Salvage Created 522 | . 522 Parts 30 | . 30 Haulers Intercepted . | . . Recyclers Shooed . | . . Parts Field Recycled . | . . Retrieved Matter . | . . Parts Self-Destructed . | . . Prevented . | . . Kills | -11 -10 ------- Run | Scr Mat Combat Hostiles Destroyed 10 | . 10 Guns 10 | . 10 Classes Destroyed 2 | . 2 Grunt 2 | . 2 Abomination 8 | . 8 Best Kill Streak 3 | . 3 Combat Bots Only 3 | . 3 Max Kills in Single Turn 1 | . 1 Gunslinging . | . . Exploded . | . . Melee . | . . Uniques/NPCs Destroyed . | . . Combat | -11 -10 -------- Run | Scr Mat Damage Taken 1170 | . 1170 Core 262 | . 262 Absorbed by Shields . | . . Core Remaining (%) 100 | 100 . Volleys Fired 40 | . 40 Largest 2 | . 2 Hottest 60 | . 60 Shots Fired 78 | . 78 Gun 78 | . 78 Cannon . | . . Launcher . | . . Special . | . . Kinetic 74 | . 74 Thermal 4 | . 4 Explosive . | . . Electromagnetic . | . . Robot Hit Streak 35 | . 35 Robot Miss Streak 2 | . 2 Penetration Max . | . . Secondary Targets . | . . Shots Hit Robots 63 | . 63 Core Hits 28 | . 28 Critical Hits 2 | . 2 Critical Kills 1 | . 1 Critical Parts Destroyed 1 | . 1 Melee Attacks . | . . Impact . | . . Slashing . | . . Piercing . | . . Sneak Attacks . | . . Combat Hostiles . | . . Follow-up Attacks . | . . Damage Inflicted 798 | . 798 Guns 798 | . 798 Cannons . | . . Explosions . | . . Melee . | . . Ramming . | . . Kinetic 742 | . 742 Thermal 56 | . 56 Explosive . | . . Electromagnetic . | . . Impact . | . . Slashing . | . . Piercing . | . . Highest Corruption . | . . Average Corruption . | . . Corruption Purged . | . . Overload Shots . | . . Overflow Damage . | . . Projectiles . | . . Explosions . | . . Melee . | . . Knockbacks . | . . Impact . | . . Kinetic . | . . Secondary . | . . Self-Inflicted Damage . | . . Shots . | . . Rammed . | . . Targets Rammed . | . . Kicked . | . . Crushed . | . . Highest Temperature 123 | . 123 Average Temperature 32 | . 32 Received Heat Transfer 183 | . 183 Siege Activations . | . . Robots Corrupted . | . . Combat Hostiles . | . . Parts Fried . | . . Impact Corruptions . | . . Robots Melted . | . . Combat Hostiles . | . . Parts Melted . | . . Heat Transferred 24 | . 24 Parts Sabotaged . | . . Parts Stolen . | . . Parts Stripped . | . . Power Chain Reactions . | . . Missiles Intercepted . | . . Alert | -11 -10 ------- Run | Scr Mat Peak Influence 60 | . 60 Average Influence 29 | . 33 Maximum Alert Level . | . . Low Security (%) 100 | . . Level 1 . | . . Level 2 . | . . Level 3 . | . . Level 4 . | . . Level 5 . | . . High Security . | . . Max Security . | . . Squads Dispatched 3 | . 3 Investigation 1 | . 1 Extermination . | . . Reinforcement 1 | . 1 Assault 1 | . 1 Garrison . | . . Intercept . | . . Construction Impeded . | . . Haulers Reinforced . | . . Stealth | -11 -10 --------- Run | Scr Mat Distress Signals 1 | . 1 Communications Jammed . | . . Distress Signals . | . . Times Spotted 14 | . 14 Peak Tracking Total 5 | . 5 Tactical Retreats 2 | . 2 Traps | -11 -10 ------- Run | Scr Mat Traps Triggered . | . . Indirectly . | . . Trap Hack Attempts . | . . Triggered . | . . Disarmed . | . . Reprogrammed . | . . Reused . | . . Traps Extracted . | . . Installed . | . . Triggered . | . . Machines | -11 -10 ---------- Run | Scr Mat Machines Disabled . | . . Max in Single Turn . | . . Machines Sabotaged . | . . Garrisons Compromised . | . . Overloaded Fab Kills . | . . Fab Network Shutdowns . | . . Hacking | -11 -10 --------- Run | Scr Mat Machines Accessed 1 | . 1 Terminals 1 | . 1 Fabricators . | . . Repair Stations . | . . Recycling Units . | . . Scanalyzers . | . . Garrison Access . | . . Total Hacks 2 | . 2 Successful 1 | . 1 Failed 1 | . 1 Catastrophic . | . . Database Lockouts . | . . Manual 2 | . 2 Terminals 2 | . 2 Fabricators . | . . Repair Stations . | . . Recycling Units . | . . Scanalyzers . | . . Garrison Access . | . . Terminal Hacks . | . . Fabricator Hacks . | . . Repair Station Hacks . | . . Recycling Unit Hacks . | . . Scanalyzer . | . . Garrison Access Hacks . | . . Unauthorized Hacks 3 | . 3 Terminals 1 | . 1 Botnet 1 | . 1 Fabricators . | . . Repair Stations . | . . Recycling Units . | . . Scanalyzers . | . . Garrison Access . | . . Data Cores Recovered . | . . Used . | . . Hacking Detections 1 | . 1 Full Trace Events . | . . Feedback Events . | . . Feedback Blocked . | . . Robot Schematics Acquired . | . . Robots Built . | . . Matter . | . . Time . | . . Total Robot Build Rating . | . . Part Schematics Acquired . | . . Parts Built . | . . Matter . | . . Time . | . . Total Part Build Rating . | . . Parts Repaired . | . . Time . | . . Parts Recycled . | . . Recycled Matter . | . . Retrieved Matter . | . . Retrieved Components . | . . Parts Scanalyzed . | . . Part Schematics Acquired . | . . Parts Damaged . | . . Bothacking | -11 -10 ------------ Run | Scr Mat Used RIF Installer . | . . Robots Hacked . | . . Non-combat . | . . Combat . | . . Robot Hacks Applied . | . . Relay Couplers Released . | . . Robots Rewired . | . . Allies Hacked . | . . Hacks Repelled . | . . Allies | -11 -10 -------- Run | Scr Mat Total Allies . | . . Largest Group . | . . Highest-Rated Group . | . . Highest-Rated Ally . | . . Total Orders . | . . Ally Attacks . | . . Total Damage . | . . Kills . | . . Allies Corrupted . | . . Allies Melted . | . . Intel | -11 -10 ------- Run | Scr Mat Robot Analysis Total . | . . Derelict Logs Recovered . | . . Drone Launches . | . . Drone Recoveries . | . . Exploration | -11 -10 ------------- Run | Scr Mat Turns Passed 382 | 41 341 Spaces Moved 174 | 34 140 Core 1 | 1 . Treads 15 | . 15 Legs . | . . Wheels 158 | 33 125 Hover . | . . Flight . | . . Fastest Speed 50 | 50 90 Average Speed 118 | 84 126 Slowest Speed 200 | 90 200 Overloaded Moves . | . . Propulsion Burnouts . | . . Robots Hopped . | . . Cave-ins Triggered . | . . Exploration Rate (%) 15 | 4 26 Regions Visited 1 Branch Regions . Pre-discovered Areas . | . . Known Exits Taken . | . . Unknown Exits Taken 1 | 1 . Scrap Searched . | . . Spaces Dug . | . . Terrain Destroyed . | . . Melee . | . . Projectile . | . . AOE . | . . Actions | -11 -10 --------- Run | Scr Mat Total 269 | 43 226 Wait 32 | . 32 Move 173 | 33 140 Hop . | . . Pick Up 13 | 4 9 Fast Attach 9 | 6 3 Attach 1 | . 1 Detach . | . . Swap 1 | . 1 Drop . | . . Fire 40 | . 40 Melee . | . . Ram . | . . Kick . | . . Crush . | . . Escape Stasis . | . . Rewire . | . . Trap . | . . Miscellaneous . | . . Route ------- -11/Scrapyard -10/Materials History --------- Turn | Location | Event 15 | -11/Scrapyard | Discovered new exit (range 16) 42 | -11/Scrapyard | Entered Materials 310 | -10/Materials | Build established: Mutant 363 | -10/Materials | Core integrity fell below 50% 377 | -10/Materials | Core integrity fell below 20% 383 | -10/Materials | Destroyed by Lesser Abomination with Etherial Claws Last Messages --------------- 00259_ Destroyed Wheel. 00262_ Minor Abomination absorbs Wheel. 00280_ Minor Abomination destroyed. 00283_ Acquired 31 matter. 00285_ Ice Anomaly freezes U-05 Engineer. 00285_ Acquired 97 matter. 00294_ Acquired Lgt. Armor Plating. 00297_ Acquired Wheel. 00308_ Acquired 10 matter. 00357_ Lesser Abomination absorbs Hover Unit. 00364_ Wheel destroyed. 00365_ Lgt. Assault Rifle destroyed. 00367_ Lesser Abomination destroyed. 00368_ Lesser Abomination absorbs Aluminum Leg. 00369_ Heat Sink blinks away. 00378_ Destroyed Aluminum Leg. 00378_ Lesser Abomination destroyed. 00379_ Lgt. Ion Engine springs to life within a quantum being. 00380_ Lesser Abomination absorbs Med. Matter Pod. 00382_ Assault Rifle destroyed. Map ----- +----------------------------------------------------+ | ??????????????????? # """ #? | | ???????????????????? # """ #? | | ????????????????????## ##+####### #? | | ?????????????????????# ? ????###+######? | | ?????????????????????# # """ ?????# #?????? | | ?????????????????????# # """ ?????# #?????? | | ?????????????????????# # """ ????# #?????? | | ?????????????????????# # ##### #?????? | | ?????????????????????# # + #?????? | | ?????????????????????# ###+####% ###?????? | | ?????????????????????# # ## #???????? | | ?????????????????????# # = #???????? | | ?????????????????????# # !!=!= #???????? | | ?????????????????????# # [!! #???????? | | ????????????????###### # =###+#######??? | | ????????????????# # ## %! #??? | | ????????????????# # ## #??? | | ????????????????# # % ## #??? | | ????????????????# # ## % #??? | | ????????????????# # % %## #??? | | ????????????#???# # % ## #??? | | ????????????# ??+ + % | ## #??? | | ?????##?????# ?# % # % ## #??? | | ?????? ???# ?# # A### ##########+#??? | | ????? ?# ###### %### %##########%#??? | | ????? # ##### A@## #??? | | ???????? + ## #??? | | ????????????# ## """" ""#??? | | ????????????# % ## """" Y"#??? | | ????????????######+## #?% """" ""#??? | | ???????????????? ]### #? #??? | | ?????????????? ! #?#% #? #??? | | ?????????????# """#?# #?? ??##### ####??? | | ?????????????# ] R"#?# #?????????# ??????? | | ?????????????# """#?# |#?????????# ??????? | | ?????????????# ! #?# #?????????# ??????? | | ?????????????########?# #?????????# ??????? | | ??????????????????????# #?????????#???????? | | ??????????????????????# #?????????????????? | | ??????????????????????# #?????????????????? | | ??????????????????????# #?????????????????? | | ??????????????????????# #?????????????????? | | ??????????????????????# #?????????????????? | | ??????????????????????? #?????????????????? | | ??????????????????????? #?????????????????? | | ??????????????????????? ??????????????????? | | ????????????????????????????????????????????? | | ????????????????????????????????????????????? | | ????????????????????????????????????????????? | | ????????????????????????????????????????????? | +----------------------------------------------------+ Best States ------------- Heat Dissipation 25 Energy Generation 10 Energy Capacity 125 Matter Stores 300 Matter Capacity 300 Sight Range 16 Terrain Scan Density 10 Evasion (%) 44 Recoil Reduction 1 Item Schematics ----------------- None Robot Schematics ------------------ None Fabricated ------------ Nothing Alien Tech Used ----------------- None Achievements -------------- None Challenges ------------ None Game ------ Seed GyrokineticCannonChainsword Manual? 0 Play Time 00:07:01 Cumulative 273.0 hours Start 2019.10.31 @ 15:00:10 End 2019.10.31 @ 15:05:51 Sessions 1 Manual Loads 0 Difficulty Rogue Special Mode Halloween2019/Abominations Game No. 150 Rogue 150 Adventurer 0 Explorer 0 Win Type - Total 4 Types 4/0/0/0/0/0/0 Lore% 69 Gallery% 76 Achievement% 53 Wizard Run 0 Options --------- ASCII 1 Keyboard 1 Movement Numpad Keybinds 1 Fullscreen 1 Font 18/SmallcapsGlow Map View 76x50 Tactical HUD 1 Map Filters NONE Filters NONE Steam 1 RUN: 44106c73-1683-4c24-9ea5-ef527a0e400f